Cogmind - Beta 13 *** ADVENTURER MODE // 2024.04.25 @ 22:03:54 Player: MrElektro Result: Destroyed by G-47 Trooper with Particle Gun Performance ------------- Evolutions (1) 500 Regions Visited (2) 400 Robots Destroyed (29) 145 Value Destroyed (703) 703 Prototype IDs (0) 0 Alien Tech Used (0) 0 Bonus (0) 0 TOTAL SCORE: 1748 Bonus ------- None Cogmind --------- Core Integrity 0/400 Matter 300/300 Energy 100/100 System Corruption 0% Temperature Cool (9) Movement Core (350) Ox6 Location -9/Materials Parts ------- > --- POWER (1) -------- (None) > --- PROPULSION (2) --- (None) > --- UTILITY (4) ------ Large Storage Unit Machine Analyzer Signal Interpreter > --- WEAPON (2) ------- (None) > --- INVENTORY (15) --- Ion Engine Ion Engine Light Treads Aluminum Leg Aluminum Leg Heat Sink Small Storage Unit Small Matter Pod (50) ECM Suite Light Armor Plating Light Assault Rifle Light Assault Rifle Datajack Mining Laser Peak State ------------ > --- POWER ------------ Light Nuclear Core > --- PROPULSION ------- Light Treads Light Treads > --- UTILITY ---------- Improved Heat Sink Large Storage Unit Machine Analyzer Signal Interpreter > --- WEAPON ----------- Light Assault Rifle Light Assault Rifle > --- INVENTORY -------- Ion Engine Ion Engine Aluminum Leg Aluminum Leg Small Storage Unit Small Matter Pod ECM Suite Light Armor Plating Assault Rifle Datajack Mining Laser [Rating: 16] Favorites ----------- Power Ion Engine Engine Ion Engine Power Core Light Nuclear Core Propulsion Light Treads Treads Light Treads Utility Signal Interpreter Device Improved Heat Sink Storage Small Storage Unit Processor Signal Interpreter Weapon Light Assault Rifle Ballistic Gun Light Assault Rifle Special Melee Weapon Datajack Build | -11 -10 -9 ------- Run | Yrd Mat Mat Slots Evolved 2 | . . 2 Power . | . . . Propulsion . | . . . Utility 2 | . . 2 Weapon . | . . . Parts Attached 25 | 6 4 15 Power 3 | 1 . 2 Engine 2 | 1 . 1 Core 1 | . . 1 Reactor . | . . . Propulsion 5 | 2 . 3 Treads 5 | 2 . 3 Leg . | . . . Wheel . | . . . Hover . | . . . Flight . | . . . Utility 8 | 1 4 3 Device 3 | . 2 1 Storage 3 | 1 1 1 Processor 2 | . 1 1 Hackware . | . . . Protection . | . . . Artifact . | . . . Weapon 9 | 2 . 7 Energy Gun . | . . . Energy Cannon . | . . . Ballistic Gun 7 | 2 . 5 Ballistic Cannon . | . . . Launcher . | . . . Special Weapon . | . . . Impact Weapon . | . . . Slashing Weapon . | . . . Piercing Weapon . | . . . Special Melee Weapon 2 | . . 2 Unidentified Prototypes . | . . . Parts Lost 10 | . 1 9 Power 2 | . . 2 Propulsion 3 | . . 3 Utility 2 | . 1 1 Weapon 3 | . . 3 Highest Loss Streak 5 | . 1 5 To Critical Strikes . | . . . Average Slot Usage (%) 97 | . 98 96 Engine 10 | . 14 5 Core 2 | . . 5 Treads 24 | . 28 20 Device 7 | . 5 9 Storage 13 | . 14 13 Processor 12 | . 7 19 Ballistic Gun 24 | . 28 19 Naked Turns . | . . . Heaviest Build 29 | 13 28 29 Greatest Support 40 | 40 40 40 Greatest Overweight (x) 8 | . 4 8 Average Overweight (x) . | . . . Largest Inventory Capacity 15 | 8 15 15 Average Capacity 11 | 7 8 15 Most Carried 14 | 3 7 14 Average Carried 7 | 1 4 11 Final Capacity 15 | 8 15 15 Final Carried 14 | 3 7 14 Class Distribution -------------------- 76% | Mutant 23% | Scavenger-Mutant Dominant Class ---------------- Mutant | -10/Materials Scavenger-Mutant | -9/Materials Resources | -11 -10 -9 ----------- Run | Yrd Mat Mat Matter Collected 711 | 171 262 278 Remotely . | . . . Salvage Created 889 | . 444 445 Parts 70 | . 36 34 Haulers Intercepted 1 | . 1 . Recyclers Shooed 1 | . 1 . Parts Field Recycled . | . . . Retrieved Matter . | . . . Parts Self-Destructed . | . . . Prevented . | . . . Kills | -11 -10 -9 ------- Run | Yrd Mat Mat Combat Hostiles Destroyed 25 | . 13 12 Guns 25 | . 13 12 Classes Destroyed 7 | . 5 2 Worker 1 | . 1 . Builder 1 | . 1 . Hauler 1 | . 1 . Mechanic 1 | . . 1 Swarmer 9 | . 6 3 Grunt 14 | . 7 7 Sentry 2 | . . 2 Best Kill Streak 6 | . 6 3 Combat Bots Only 5 | . 5 3 Max Kills in Single Turn 1 | . 1 1 Gunslinging . | . . . Exploded . | . . . Melee . | . . . Uniques/NPCs Destroyed . | . . . Combat | -11 -10 -9 -------- Run | Yrd Mat Mat Hostile Shots Fired 249 | . 40 209 Missed 69 | . 9 60 Damage Taken 1528 | . 282 1246 Core 455 | . 46 409 Absorbed by Shields . | . . . Ignored by Resistances 469 | . 86 383 Core Remaining (%) 90 | 100 81 . Volleys Fired 90 | . 35 55 Largest 2 | . 2 2 Hottest 40 | . 40 40 Shots Fired 163 | . 70 93 Gun 163 | . 70 93 Cannon . | . . . Launcher . | . . . Special . | . . . Kinetic 163 | . 70 93 Thermal . | . . . Explosive . | . . . Electromagnetic . | . . . Robot Hit Streak 32 | . 27 32 Robot Miss Streak 2 | . 2 2 Penetration Max . | . . . Secondary Targets 4 | . 2 2 Max Gunslinging Chain 1 | . 1 1 Shots Hit Robots 139 | . 59 80 Core Hits 58 | . 26 32 Critical Kills . | . . . Critical Parts Destroyed 2 | . . 2 Critical Strikes 2 | . . 2 Destroy 2 | . . 2 Melee Attacks 2 | . . 2 Impact . | . . . Slashing . | . . . Piercing . | . . . Sneak Attacks 1 | . . 1 Combat Hostiles . | . . . Follow-up Attacks . | . . . Damage Inflicted 1321 | . 628 693 Guns 1317 | . 624 693 Cannons . | . . . Explosions . | . . . Melee . | . . . Ramming 4 | . 4 . Kinetic 1317 | . 624 693 Thermal . | . . . Explosive . | . . . Electromagnetic . | . . . Impact . | . . . Slashing . | . . . Piercing . | . . . Highest Corruption . | . . . Average Corruption . | . . . Corruption Purged . | . . . Corruption Blocked . | . . . Overload Shots . | . . . Overflow Damage . | . . . Projectiles . | . . . Explosions . | . . . Melee . | . . . Knockbacks . | . . . Impact . | . . . Kinetic . | . . . Secondary . | . . . Self-Inflicted Damage . | . . . Shots . | . . . Rammed 1 | . 1 . Targets Rammed 1 | . 1 . Kicked . | . . . Crushed . | . . . Highest Temperature 18 | . 18 12 Average Temperature 9 | . 9 10 Received Heat Transfer 741 | . 156 585 Siege Activations . | . . . Robots Corrupted . | . . . Combat Hostiles . | . . . Parts Fried . | . . . Impact Corruptions . | . . . Robots Melted . | . . . Combat Hostiles . | . . . Parts Melted . | . . . Heat Transferred . | . . . Parts Sabotaged . | . . . Parts Stolen . | . . . Parts Stripped . | . . . Power Chain Reactions . | . . . Alert | -11 -10 -9 ------- Run | Yrd Mat Mat Peak Influence 285 | . 285 169 Initial . | . . . Average 77 | . 109 43 Maximum Alert Level 1 | . 1 . Low Security (%) 90 | 100 82 100 Level 1 9 | . 17 . Level 2 . | . . . Level 3 . | . . . Level 4 . | . . . Level 5 . | . . . High Security . | . . . Max Security . | . . . Squads Dispatched 3 | . 2 1 Investigation 3 | . 2 1 Extermination . | . . . Reinforcement . | . . . Assault . | . . . Garrison . | . . . Intercept . | . . . Searches Triggered . | . . . Construction Impeded . | . . . Haulers Reinforced . | . . . Active Scanning Responses . | . . . Cargo Convoy Interrupts . | . . . Stealth | -11 -10 -9 --------- Run | Yrd Mat Mat Distress Signals 2 | . 1 1 Communications Jammed . | . . . Distress Signals . | . . . Times Spotted 52 | . 21 31 Peak Tracking Total 9 | . 3 9 Tactical Retreats 1 | . . 1 Traps | -11 -10 -9 ------- Run | Yrd Mat Mat Traps Triggered 4 | . 3 1 Indirectly . | . . . Trap Hack Attempts . | . . . Triggered . | . . . Disarmed . | . . . Reprogrammed . | . . . Reused . | . . . Traps Extracted . | . . . Installed . | . . . Triggered . | . . . Machines | -11 -10 -9 ---------- Run | Yrd Mat Mat Machines Disabled . | . . . Max in Single Turn . | . . . Machines Repaired . | . . . Machines Dismantled . | . . . Machines Sabotaged . | . . . Overloaded Fab Kills . | . . . Hacking | -11 -10 -9 --------- Run | Yrd Mat Mat Machines Accessed 2 | . . 2 Terminals 1 | . . 1 Fabricators . | . . . Repair Stations . | . . . Recycling Units . | . . . Scanalyzers 1 | . . 1 Garrison Access . | . . . Total Hacks 3 | . . 3 Successful 3 | . . 3 Failed . | . . . Catastrophic . | . . . Database Lockouts . | . . . Manual . | . . . Terminals 1 | . . 1 Fabricators . | . . . Repair Stations . | . . . Recycling Units . | . . . Scanalyzers 2 | . . 2 Garrison Access . | . . . Terminal Hacks 1 | . . 1 Robot Analysis 1 | . . 1 Fabricator Hacks . | . . . Repair Station Hacks . | . . . Recycling Unit Hacks . | . . . Scanalyzer 2 | . . 2 Insert Component 1 | . . 1 Analyze 1 | . . 1 Garrison Access Hacks . | . . . Unauthorized Hacks . | . . . Terminals . | . . . Fabricators . | . . . Repair Stations . | . . . Recycling Units . | . . . Scanalyzers . | . . . Garrison Access . | . . . Data Cores Recovered . | . . . Used . | . . . Hacking Detections 1 | . . 1 Full Trace Events . | . . . Feedback Events . | . . . Feedback Blocked . | . . . Robot Schematics Acquired . | . . . Robots Built . | . . . Authchips . | . . . Time . | . . . Total Robot Build Rating . | . . . Part Schematics Acquired 1 | . . 1 Parts Built . | . . . Authchips . | . . . Time . | . . . Total Part Build Rating . | . . . Parts Repaired . | . . . Time . | . . . Parts Recycled . | . . . Recycled Matter . | . . . Retrieved Matter . | . . . Retrieved Components . | . . . Parts Scanalyzed 1 | . . 1 Part Schematics Acquired 1 | . . 1 Parts Damaged . | . . . Bothacking | -11 -10 -9 ------------ Run | Yrd Mat Mat Used RIF Installer . | . . . Robots Hacked 2 | . . 2 Non-combat 2 | . . 2 Combat . | . . . Robot Hacks Applied 2 | . . 2 parse_system 1 | . . 1 no_distress 1 | . . 1 Relay Couplers Released . | . . . Fabnet Peak Effective % . | . . . Robots Rewired . | . . . Allies Hacked . | . . . Hacks Repelled . | . . . Allies | -11 -10 -9 -------- Run | Yrd Mat Mat Total Allies . | . . . Largest Group . | . . . Highest-Rated Group . | . . . Highest-Rated Ally . | . . . Total Orders . | . . . Ally Attacks . | . . . Total Damage . | . . . Kills . | . . . Allies Corrupted . | . . . Allies Melted . | . . . Intel | -11 -10 -9 ------- Run | Yrd Mat Mat Robot Analysis Total 1 | . . 1 Derelict Logs Recovered . | . . . Drone Launches . | . . . Drone Recoveries . | . . . Exploration | -11 -10 -9 ------------- Run | Yrd Mat Mat Turns Passed 2278 | 92 1229 957 Spaces Moved 1151 | 51 674 426 Core 13 | 1 2 10 Treads 1138 | 50 672 416 Legs . | . . . Wheels . | . . . Hover . | . . . Flight . | . . . Fastest Speed 50 | 50 160 160 Average Speed 162 | 157 160 165 Slowest Speed 450 | 160 250 450 Overloaded Moves . | . . . Propulsion Burnouts . | . . . Robots Hopped . | . . . Cave-ins Triggered . | . . . Exploration Rate (%) 40 | 4 77 40 Regions Visited 2 Branch Regions . Pre-discovered Areas . | . . . Known Exits Taken 1 | . 1 . Unknown Exits Taken 1 | 1 . . Scrap Searched . | . . . Spaces Dug . | . . . Terrain Destroyed . | . . . Melee . | . . . Projectile . | . . . AOE . | . . . Terrain Rammed . | . . . Walls Destroyed . | . . . Machines Disabled . | . . . Actions | -11 -10 -9 --------- Run | Yrd Mat Mat Total 1415 | 60 757 598 Wait 127 | 1 41 85 Move 1149 | 50 673 426 Hop . | . . . Pick Up 18 | 3 3 12 Fast Attach 8 | 6 2 . Attach 7 | . . 7 Detach 2 | . . 2 Swap 10 | . 2 8 Drop 1 | . . 1 Fire 90 | . 35 55 Melee 2 | . . 2 Ram . | . . . Kick . | . . . Crush 1 | . 1 . Escape Stasis . | . . . Rewire . | . . . Trap . | . . . Miscellaneous . | . . . Route ------- -11/Scrapyard -10/Materials (discovered 4 exits: *Mat x2 / *Min x2) -9/Materials History --------- Turn | Location | Event 33 | -11/Scrapyard | Discovered new exit (range 16) 93 | -11/Scrapyard | Entered Materials 305 | -10/Materials | Build established: Mutant 565 | -10/Materials | Discovered new exit (range 8) 566 | -10/Materials | Discovered new exit (range 16) 704 | -10/Materials | Identified exit to Materials 752 | -10/Materials | Identified exit to Mines 805 | -10/Materials | Discovered exit to Materials (range 15) 992 | -10/Materials | Discovered exit to Mines (range 12) 1322 | -10/Materials | Entered another Materials area 1322 | -9/Materials | Evolved 2 slots: Utility x2 1915 | -9/Materials | Build established: Scavenger-Mutant 2180 | -9/Materials | Lost 3 parts (1n1u1w) 2247 | -9/Materials | Core integrity fell below 50% 2260 | -9/Materials | Core integrity fell below 20% 2279 | -9/Materials | Destroyed by G-47 Trooper with Particle Gun Last Messages --------------- 02149_ Lgt. Assault Rifle destroyed. 02150_ R-06 Scavenger collects Ion Engine. 02152_ K-01 Serf collects debris. 02156_ S-10 Pest destroyed. 02158_ K-01 Serf collects debris. 02160_ Acquired Lgt. Assault Rifle. 02162_ K-01 Serf cleans the Neutrino Reactor. 02164_ Acquired 11 matter. 02166_ K-01 Serf cleans the Neutrino Reactor. 02170_ Acquired Lgt. Assault Rifle. 02173_ K-01 Serf collects debris. 02176_ K-01 Serf cleans the Neutrino Reactor. 02179_ K-01 Serf collects debris. 02181_ Acquired 14 matter. 02231_ Assault Rifle destroyed. 02238_ Lgt. Treads destroyed. 02246_ Lgt. Assault Rifle destroyed. 02247_ S-10 Pest destroyed. 02252_ Ion Engine destroyed. 02257_ G-34 Mercenary suffers critical hit (Burn). Map ----- +----------------------------------------------------+ | ?????????????????????????????????????????????????? | | ?????????????????????????????????????????????????? | | ?????????????????????????????????????????????????? | | ?????????????????????????????????????????????????? | | ?????????????????????????????????????????????????? | | ?????????????????????????????????????????????????? | | ?????????????????????????????????????????????????? | | ?????????????????????????????????????????????????? | | ????? ???????????????????????????????????????????? | | ?????+####???????????????????????????????????????? | | ????? #???????????????????????????????????????? | | ????? +???????????????????????????????????????? | | ????? #???????????????????????????????????????? | | ###### #???????????????????????????????????????? | | # #???????????????????????????????????????? | | # #???????????????????????????????????????? | | # #???????????????????????????????????????? | | "" # #???????????????????????????????????????? | | =S"" # #???????????####??####??????????????????? | | "" # #??????????## ## #??????????????????? | | # #???######## #??????????????????? | | +##### #???#= ] # #??????????????????? | | #####= / # #??????????????????? | | ! + # #??????????????????? | | ##### # #??????????????????? | | """ #???# # @ #??????????????????? | | """ #???# ! # #??????????????????? | | """ #???#####+######g#############+### ??? | | #????# % ??? | | ###### *[ ??? | | =%* ??? | | ##############+################ ##### ??? | | #?????????#! #??????????? #??????????? | | #?????????#[ %""" #???????????? #??????????? | | #?????????# """ #????????????? #??????????? | | #?????????# %""" #??????????????#/#??????????? | | #?????????# #??????????????? ?????????? | | +?????????# """ #???????????????? """???????? | | #?????????# """ #??"""?"""????????"""???????? | | #?????????# """ #??"""?"""????????"""???????? | | #?????????# #??"""?"""??????????????????? | | #?????????##########?????????????????"""???????? | | #????????????????????????????????????"""???????? | | #????????????????????????????????????"""???????? | | ??????????????????????????????????????????????? | | ??????????????????????????????????????????????? | | ??????????????????????????????????????????????? | | #??????????????????????????????????????????????? | | ?????????????????????????????"T"?????????????????? | | ?????????????????????????????????????????????????? | +----------------------------------------------------+ Best States ------------- Heat Dissipation 42 Energy Generation 14 Energy Capacity 250 Matter Stores 300 Matter Capacity 350 Sight Range 16 Terrain Scan Density 10 Resistance: KI 20 Resistance: TH 20 Resistance: EX 20 Resistance: EM 20 Resistance: I 20 Resistance: S 20 Resistance: P 20 Evasion (%) 40 Recoil Reduction 2 Offensive Hacking 10 Item Schematics ----------------- Lgt. Treads | -9/Materials | Scanalyzed Robot Schematics ------------------ None Fabricated ------------ Nothing Alien Tech Used ----------------- None Achievements -------------- Loot Pinata Challenges ------------ None Game ------ Seed GreatTiamatAxe Manual? 0 Play Time 00:26:22 Cumulative 5.4 hours Start 2024.04.25 @ 21:32:15 End 2024.04.25 @ 22:03:54 Sessions 1 Manual Loads 0 Difficulty Adventurer Special Mode None Game No. 8 Rogue 0 Adventurer 8 Explorer 0 Win Type - Total 0 Types 0/0/0/0/0/0/0/0/0 Lore% 13 Gallery% 12 Achievement% 10 Wizard Run 0 Options --------- Layout 0 ASCII 0 Keyboard 1 Movement Vi Keybinds 0 Fullscreen 2 Font 36/Smallcaps Map View 76x50 Zoom Use 0% Tactical HUD 1 Map Filters NONE Filters NONE Steam 1 RUN: ac4f4aef-8866-4365-95c8-22fc9cf2fe00